bitfinex/quotes_ETHUSD_20250721
["timestamp","ask_amount","ask_price","bid_price","bid_amount"]
[1753057004171,0.47229231,3732.2,3731.3,2.68001668]
[1753057004355,0.47229231,3732.2,3731.2,0.302]
[1753057004557,0.8226,3732.7,3731.4,0.02]
[1753057004755,0.02,3733.9,3731.4,0.02]
[1753057004756,0.8226,3733.1,3731.8,3.0]
[1753057005072,0.8226,3733.1,3732.0,2.67951447]
[1753057005232,0.4388,3732.9,3731.8,3.0]
[1753057005565,0.4388,3732.9,3732.8,2.67895413]
[1753057006865,0.8226,3733.1,3732.9,2.67888237]
[1753057007033,0.4388,3733.4,3732.9,3.48391527]
[1753057007870,0.43880001,3733.0,3732.9,3.48391527]
[1753057008070,0.43880001,3733.0,3732.9,2.67888237]
[1753057008244,0.43880001,3733.0,3732.9,2.81248237]
[1753057009273,1e-08,3733.0,3732.9,2.81248237]
[1753057010078,0.43880001,3733.0,3732.9,2.81248237]
[1753057012044,1e-08,3733.0,3732.9,2.81248237]
[1753057012244,0.43880001,3733.0,3732.9,2.81248237]
[1753057014479,1e-08,3733.0,3732.9,3.36297086]
[1753057014643,0.43880001,3733.0,3732.9,2.81248237]
[1753057015781,1e-08,3733.0,3732.9,2.81248237]
[1753057015967,1.25890001,3733.0,3732.9,0.1336]
[1753057016280,1.25890001,3733.0,3732.9,2.81248237]
[1753057016776,1.25890001,3733.0,3732.9,0.1336]
[1753057016978,1.25890001,3733.0,3732.9,2.81248237]
[1753057017178,0.82010001,3733.0,3732.9,2.81248237]
[1753057017484,1.25890001,3733.0,3732.9,2.81248237]
[1753057017681,1.25890001,3733.0,3732.9,0.1336]
[1753057018075,1.25890001,3733.0,3732.9,2.81248237]
[1753057019380,1.25890001,3733.0,3732.9,0.1336]
[1753057019694,5.49590001,3733.0,3732.9,2.81248237]
[1753057020274,5.49590001,3733.0,3732.9,0.1336]
[1753057020485,1.25890001,3733.0,3732.9,0.1336]
[1753057020694,5.49490001,3733.0,3732.9,0.1336]
[1753057021076,1.25890001,3733.0,3732.9,0.1336]
[1753057021394,1.25890001,3733.0,3732.9,2.81248237]
[1753057021395,1e-08,3733.0,3732.9,2.81248237]
[1753057021567,1e-08,3733.0,3732.9,3.36163282]
[1753057021899,0.44000001,3733.0,3732.9,0.1336]
[1753057022192,5.46400001,3733.0,3732.9,0.1336]
[1753057022599,1.23000001,3733.0,3732.9,0.1336]
[1753057022762,5.46400001,3733.0,3732.9,0.1336]
[1753057023302,1.23000001,3733.0,3732.9,0.1336]
[1753057023460,1e-08,3733.0,3732.9,2.81248237]
[1753057023658,4.23300001,3733.0,3732.9,0.68275012]
[1753057023967,4.67300001,3733.0,3732.9,0.1336]
[1753057024295,0.44000001,3733.0,3732.9,2.81248237]
[1753057024472,4.67300001,3733.0,3732.9,2.81248237]
[1753057024798,1e-08,3733.0,3732.9,2.81248237]
[1753057025685,1e-08,3733.0,3732.9,2.82587876]
[1753057025864,1e-08,3733.0,3732.9,3.36297262]
[1753057026060,1e-08,3733.0,3732.9,6.55196901]
[1753057026344,1e-08,3733.0,3732.9,6.53857262]
[1753057028419,1e-08,3733.0,3732.2,2.67935317]
[1753057028420,0.75690001,3733.0,3729.8,2.923129]
[1753057028724,0.75690001,3733.0,3729.1,0.02]
[1753057028725,0.7569,3731.1,3729.1,0.02]
[1753057028932,0.7569,3730.9,3729.1,0.02]
[1753057029124,2.68053396,3730.6,3729.1,2.70154678]
[1753057029453,1.98878927,3730.6,3729.2,3.0]
[1753057029653,1.98878927,3730.6,3729.1,0.02]
[1753057029654,1.1969,3730.6,3729.1,0.02]
[1753057029817,5.5359,3730.6,3729.2,3.0]
[1753057030015,5.5359,3730.6,3729.1,0.02]
[1753057030322,5.5359,3730.6,3729.4,2.68139369]
[1753057030323,5.5349,3730.6,3729.4,2.68139369]
[1753057030528,5.5349,3730.6,3729.1,0.02]
[1753057030729,1.1969,3730.6,3729.1,0.02]
[1753057030913,5.5329,3730.6,3729.2,0.1756]
[1753057031113,0.7569,3730.6,3729.2,0.1756]
[1753057031343,0.7569,3730.6,3729.8,2.68109039]
[1753057031556,0.7569,3730.6,3729.9,2.69446105]
[1753057031927,4.335,3730.8,3730.1,0.03344092]
[1753057032332,4.775,3730.7,3730.1,0.02]
[1753057032748,2.68039557,3730.8,3730.1,0.02]
[1753057033045,0.44,3730.6,3730.1,0.02]
[1753057034036,4.333,3730.6,3730.1,0.02]
[1753057034249,0.44,3730.6,3730.1,0.02]
[1753057034639,4.772,3730.6,3730.1,0.02]
[1753057034820,7.93308436,3730.6,3730.1,0.02]
[1753057035022,5.2525504,3730.6,3730.1,0.02]
[1753057035229,7.93308436,3730.6,3730.1,0.02]
[1753057035559,5.2525504,3730.6,3730.1,0.02]
[1753057035859,7.93308436,3730.6,3730.1,0.02]
[1753057036277,2.6808214,3730.2,3730.1,0.02]
[1753057036566,0.7595,3730.0,3729.1,0.02]
[1753057036724,4.36551296,3729.9,3729.1,0.02]
[1753057037067,4.332,3729.8,3729.1,0.02]
[1753057037565,4.332,3729.7,3729.1,0.02]
[1753057038254,4.332,3729.6,3729.2,2.68148811]
[1753057038422,4.332,3729.6,3729.2,2.6949488]
[1753057038627,0.44,3729.9,3729.5,0.1336]
[1753057038861,4.77,3729.8,3729.5,0.1336]
[1753057039066,4.44,3729.7,3729.1,0.02]
[1753057039244,0.777,3729.6,3729.1,0.1536]
[1753057039564,0.44,3729.5,3729.1,0.1536]
[1753057039864,2.71492589,3729.4,3729.1,0.1536]
[1753057040065,4.768,3729.3,3729.1,0.1536]
[1753057040429,0.44,3729.2,3729.1,0.1536]
[1753057041748,4.765,3729.2,3729.1,0.1536]
[1753057042272,6.0406943,3729.2,3729.1,0.1536]
[1753057042478,1.7156943,3729.2,3729.1,0.02]
[1753057042774,1.2391943,3729.2,3729.1,0.02]
[1753057043065,5.5611943,3729.2,3729.1,0.02]
[1753057044868,0.7811,3729.6,3729.1,2.70161218]
[1753057045065,4.323,3729.5,3729.1,2.70154495]
[1753057045234,4.323,3729.5,3729.1,0.02]
[1753057045434,0.44,3729.4,3729.1,0.02]
[1753057045633,4.318,3729.3,3729.1,0.02]
[1753057045873,4.758,3729.3,3729.1,0.02]
[1753057046073,0.44,3729.2,3729.1,0.02]
[1753057046239,1.253,3729.2,3729.1,0.02]
[1753057046441,5.57,3729.2,3729.1,0.02]
[1753057046879,5.57,3729.2,3729.1,0.021]
[1753057047242,5.569,3729.2,3729.1,0.021]
[1753057047477,1.2076,3729.6,3729.1,2.70261218]
[1753057047679,4.754,3729.5,3729.1,2.70258983]
[1753057047977,4.313,3729.4,3729.1,0.021]
[1753057048567,4.0,3729.7,3729.1,0.042]
[1753057048753,4.313,3729.4,3729.3,2.68146837]
[1753057049055,4.312,3729.4,3729.1,0.021]
[1753057049253,4.7775,3729.4,3729.1,0.021]
[1753057050169,4.7775,3729.4,3729.1,2.70259662]
[1753057050738,4.7775,3729.4,3729.1,0.021]
[1753057050979,0.8182,3729.6,3729.2,2.68154027]
[1753057051197,4.306,3729.5,3729.4,2.68135475]
[1753057051354,4.306,3729.5,3729.4,2.68133081]
[1753057051559,4.306,3729.5,3729.1,2.70254303]
[1753057051751,4.306,3729.5,3729.3,2.68144768]
[1753057051953,4.306,3729.5,3729.1,0.021]
[1753057052150,0.4655,3729.4,3729.1,0.021]
[1753057052659,0.7844,3729.3,3729.1,0.021]
[1753057052847,4.303,3729.2,3729.1,0.021]
[1753057053045,4.7685,3729.2,3729.1,0.021]
[1753057053270,4.80201925,3729.2,3729.1,0.021]
[1753057053643,4.7685,3729.2,3729.1,0.021]
[1753057053966,4.7695,3729.2,3729.1,0.021]
[1753057054171,5.33825,3729.2,3729.1,0.021]
[1753057054360,0.4655,3729.2,3729.1,0.021]
[1753057054557,4.7675,3729.2,3729.1,0.021]
[1753057054755,4.80101925,3729.2,3729.1,0.021]
[1753057055404,4.7685,3729.2,3729.1,0.021]
[1753057055560,0.4655,3729.2,3729.1,0.021]
[1753057055764,4.7685,3729.2,3729.1,0.021]
[1753057055960,4.7675,3729.2,3729.1,0.021]
[1753057056592,5.3349,3729.2,3729.1,0.021]
[1753057056750,5.3329,3729.2,3729.1,0.021]
[1753057056952,1.87071925,3729.2,3729.1,0.021]
[1753057057153,8.25134027,3729.2,3729.1,0.021]
[1753057057457,5.5698,3729.2,3729.1,0.021]
[1753057057646,5.5708,3729.2,3729.1,0.021]
[1753057058049,8.25234027,3729.2,3729.1,0.021]
[1753057058483,8.4561326,3729.2,3729.1,0.021]
[1753057059052,9.0061326,3729.2,3729.1,0.021]
[1753057059952,9.0061326,3729.2,3728.8,0.001]
[1753057059953,0.8043,3728.9,3728.8,0.001]
[1753057060460,1.2698,3728.9,3728.8,0.001]
[1753057060659,8.38415601,3728.9,3728.8,0.001]
[1753057061246,0.7518,3728.5,3728.1,0.02]
[1753057061450,1.36336774,3728.5,3728.1,0.02]
[1753057061774,4.79702644,3728.4,3728.1,0.02]
[1753057061978,0.49902644,3728.4,3728.1,0.02]
[1753057062169,0.4655,3728.4,3728.1,0.02]
[1753057062368,4.7625,3728.4,3728.1,0.02]
[1753057062560,5.51934823,3728.4,3728.1,0.02]
[1753057062760,5.48582179,3728.4,3728.1,0.02]
[1753057063188,1.73882179,3728.4,3728.1,0.02]
[1753057063364,9.53396388,3728.4,3728.1,0.02]
[1753057063564,9.50043744,3728.4,3728.1,0.02]
[1753057063769,1.97332179,3728.4,3728.1,0.02]
[1753057063965,6.26732179,3728.4,3728.1,0.02]
[1753057064166,5.543,3728.4,3728.1,0.02]
[1753057064397,1.3468,3728.3,3728.1,0.02]
[1753057064556,3.47905953,3728.2,3728.1,0.02]
[1753057064899,8.28808777,3728.2,3728.1,0.02]
[1753057065062,8.25455953,3728.2,3728.1,0.02]
[1753057065264,8.25355953,3728.2,3728.1,0.02]
[1753057066717,3.94455953,3728.2,3728.1,0.02]
[1753057066911,8.28708777,3728.2,3728.1,0.02]
[1753057067208,8.80355953,3728.2,3728.1,0.02]
[1753057068283,1.8123,3728.2,3728.1,0.02]
[1753057068529,8.98289505,3728.2,3728.1,0.021]
[1753057069209,0.7811,3727.9,3727.8,0.004]
[1753057069391,7.78557538,3727.9,3727.8,0.004]
[1753057069567,3.92907538,3727.9,3727.8,0.004]
[1753057069764,5.60513094,3727.9,3727.8,0.004]
[1753057069967,5.5716,3727.9,3727.8,0.004]
[1753057070211,0.7811,3727.9,3727.8,0.004]
[1753057070368,4.325,3727.9,3727.8,0.004]
[1753057070811,4.7905,3727.9,3727.8,0.004]
[1753057071022,3.6437382,3727.9,3727.8,0.004]
[1753057071185,9.36106914,3727.9,3727.8,0.004]
[1753057071497,9.36106914,3727.9,3727.6,0.001]
[1753057071498,4.0424193,3727.7,3727.6,0.001]
[1753057071697,8.40395204,3727.7,3727.6,0.001]
[1753057071899,3.99946324,3727.5,3727.4,0.004]
[1753057072197,0.55,3727.4,3727.1,0.024]
[1753057072412,3.99967918,3727.2,3727.1,0.024]
[1753057072593,8.32867918,3727.2,3727.1,0.024]
[1753057072805,2.68369921,3726.2,3726.1,0.12]
[1753057072968,5.0947,3726.2,3726.1,0.12]
[1753057073163,8.77320827,3726.2,3726.1,0.12]
[1753057073368,8.74466203,3726.2,3726.1,0.12]
[1753057073615,8.74566203,3726.2,3726.1,0.12]
[1753057073819,4.41166203,3726.2,3726.1,0.12]
[1753057074023,8.78020827,3726.2,3726.1,0.12]
[1753057074178,4.41166203,3726.2,3726.1,0.12]
[1753057074381,9.33220827,3726.2,3726.1,0.12]
[1753057074620,2.68405937,3725.7,3725.6,0.004]
[1753057074829,5.111,3725.7,3725.6,0.004]
[1753057074964,5.131,3725.7,3725.6,0.004]
[1753057075374,5.5965,3725.7,3725.6,0.004]
[1753057076126,5.5945,3725.7,3725.6,0.004]
[1753057076272,4.8205,3725.7,3725.6,0.004]
[1753057076689,7.50455937,3725.7,3725.6,0.004]
[1753057076898,9.31301489,3725.7,3725.6,0.004]
[1753057077404,4.95801489,3725.7,3725.6,0.004]
[1753057077610,9.34756563,3725.7,3725.6,0.004]
[1753057077816,9.31401489,3725.7,3725.6,0.004]
[1753057078021,0.7567,3726.1,3725.6,0.004]
[1753057078321,0.7567,3726.9,3725.6,0.217]
[1753057078546,3.816,3726.8,3726.0,2.68383579]
[1753057078716,3.816,3726.8,3726.0,2.95221937]
[1753057078902,0.765,3727.5,3726.1,2.89672862]
[1753057079081,4.361,3727.4,3726.2,0.01350891]
[1753057079403,4.361,3727.4,3726.3,2.68362719]
[1753057079606,0.765,3727.5,3726.1,0.213]
[1753057079607,5.53105524,3727.1,3726.1,0.213]
[1753057080005,4.84663903,3727.0,3726.1,0.213]
[1753057080220,4.84663903,3727.0,3726.3,2.68358771]
[1753057080425,4.8131,3727.0,3726.3,2.68358771]
[1753057080651,4.8131,3727.0,3726.1,0.50267753]
[1753057080852,4.8131,3727.0,3726.1,2.89675525]
[1753057080988,5.53105524,3727.1,3726.1,2.89675525]
[1753057080989,4.359,3726.9,3726.2,2.68364021]
[1753057081196,4.359,3726.9,3726.1,2.89675952]
[1753057081545,4.359,3726.9,3726.1,0.213]
[1753057081745,7.07380921,3726.8,3726.1,0.213]
[1753057082044,4.38854173,3726.7,3725.8,0.213]
[1753057082340,5.18104173,3726.7,3725.8,0.213]
[1753057082540,5.1475,3726.7,3725.8,0.213]
[1753057082746,0.7925,3726.7,3726.1,2.68372471]
[1753057082950,0.7631,3727.2,3726.4,2.68349735]
[1753057083157,0.1336,3727.0,3726.4,0.1336]
[1753057083435,0.03353993,3726.9,3726.4,0.1336]
[1753057083742,0.4531,3726.8,3726.4,0.1336]
[1753057084054,2.68354594,3726.5,3725.5,3.0]
[1753057084254,2.68357393,3726.4,3725.8,0.1336]
[1753057084537,2.81741973,3726.1,3725.5,0.1336]
[1753057084750,0.03354804,3726.0,3725.7,2.68402049]
[1753057084896,4.353,3726.0,3725.5,0.1336]
[1753057085218,0.5867,3726.5,3725.8,0.1336]
[1753057085423,4.352,3726.4,3725.8,0.55058526]
[1753057085609,0.03354443,3726.4,3726.0,0.1336]
[1753057085814,0.9467,3726.6,3726.0,0.1336]
[1753057086142,4.351,3726.3,3726.0,0.1336]
[1753057086291,4.35,3726.3,3726.0,0.1336]
[1753057086491,4.35,3726.5,3726.1,0.2274]
[1753057086713,4.35,3726.5,3726.2,0.1336]
[1753057087090,3.16985534,3726.9,3726.2,0.1336]
[1753057087091,4.35,3726.6,3726.2,0.1336]
[1753057087290,4.1336,3727.0,3726.2,0.1336]
[1753057087542,4.38553993,3726.9,3726.2,0.1336]
[1753057087840,4.352,3726.9,3726.2,0.1336]
[1753057088442,4.352,3726.9,3726.2,2.81729156]
[1753057088605,4.352,3726.8,3726.2,0.1336]
[1753057088812,0.03354173,3726.7,3726.2,0.1336]
[1753057089010,1.26984263,3726.6,3725.6,0.004]
[1753057089212,0.1336,3726.1,3725.6,0.004]
[1753057089411,4.38954804,3726.0,3725.6,0.004]
[1753057089745,4.356,3725.9,3725.6,0.004]
[1753057089912,4.356,3725.8,3725.6,0.004]
[1753057090294,4.356,3725.8,3725.6,2.6880648]
[1753057090530,4.356,3725.8,3725.6,2.8216648]
[1753057090733,0.1336,3726.2,3725.6,0.1376]
[1753057091036,0.1336,3726.2,3726.1,0.001]
[1753057091397,4.4866,3726.2,3726.1,0.001]
[1753057091821,4.9397,3726.2,3726.1,0.001]
[1753057092043,8.12072356,3726.2,3726.1,0.001]
[1753057092535,5.43402435,3726.2,3726.1,0.001]
[1753057093059,5.46757059,3726.2,3726.1,0.001]
[1753057093659,8.9643698,3726.2,3726.1,0.001]
[1753057093860,1.44402435,3726.2,3726.1,0.001]
[1753057094021,4.348,3726.2,3726.1,0.001]
[1753057094360,4.347,3726.7,3726.3,2.68361766]
[1753057094660,4.347,3726.7,3726.1,2.81834862]
[1753057094819,4.347,3726.7,3726.4,0.1336]
[1753057095016,0.03353993,3726.9,3726.4,0.1336]
[1753057095282,4.347,3726.8,3726.4,0.1336]
[1753057095556,4.347,3726.7,3726.4,0.1336]
[1753057096539,4.346,3726.6,3726.4,0.1336]
[1753057096926,0.82544353,3726.5,3726.4,0.1336]
[1753057097130,4.7991,3726.6,3726.1,0.001]
[1753057097447,4.349,3726.5,3726.1,0.001]
[1753057098157,4.349,3726.4,3726.1,2.68475042]
[1753057098360,0.1336,3726.9,3726.2,0.1336]
[1753057098665,4.347,3726.6,3726.2,0.1336]
[1753057099872,0.1336,3726.9,3726.5,2.68346859]
[1753057100027,4.0,3727.0,3726.5,0.1336]
[1753057100367,4.0,3727.0,3726.9,2.68319514]
[1753057100566,4.0,3727.0,3726.9,2.91059514]
[1753057101073,4.0,3727.0,3726.9,2.68319514]
[1753057101247,4.0,3727.0,3726.8,0.1336]
[1753057101683,4.0,3727.0,3726.8,2.81682195]
[1753057102220,4.0,3727.0,3726.8,0.6836217]
[1753057102362,4.0,3727.0,3726.8,0.1336]
[1753057102989,4.4531,3727.0,3726.8,0.1336]
[1753057103584,4.0,3727.0,3726.8,0.1336]
[1753057105322,4.48663903,3727.0,3726.8,0.1336]
[1753057105622,4.4531,3727.0,3726.8,0.1336]
[1753057105787,0.03353993,3726.9,3726.8,0.1336]
[1753057106722,2.13920392,3726.9,3726.1,0.001]
[1753057106908,1.25623993,3726.9,3726.4,0.1336]
[1753057107111,2.68338567,3726.7,3726.1,0.001]
[1753057107287,7.18957431,3726.6,3726.1,0.001]
[1753057107485,7.60913398,3726.6,3726.1,0.001]
[1753057107719,0.4531,3726.5,3726.1,0.001]
[1753057107920,0.03354443,3726.4,3726.1,0.001]
[1753057108137,2.81724723,3726.3,3726.1,0.001]
[1753057108300,4.37054624,3726.2,3726.1,0.001]
[1753057108501,4.81974624,3726.2,3726.1,0.001]
[1753057109618,4.7862,3726.2,3726.1,0.001]
[1753057110130,4.338,3726.2,3726.1,0.001]
[1753057110290,0.5828,3726.8,3726.1,0.1346]
[1753057110490,0.1336,3726.8,3726.1,0.1346]
[1753057110744,4.0,3727.0,3726.7,0.1336]
[1753057111035,8.335,3727.0,3726.7,0.1336]
[1753057111190,8.335,3727.0,3726.1,0.001]
[1753057111191,0.48273993,3726.9,3726.1,0.001]
[1753057111396,4.0,3727.0,3726.5,0.1336]
[1753057111709,4.36853993,3726.9,3726.5,0.1336]
[1753057111923,7.50093533,3726.9,3726.1,0.001]
[1753057112240,0.1336,3726.4,3726.1,0.001]
[1753057112444,4.336,3726.3,3726.1,0.001]
[1753057112640,0.03354624,3726.2,3726.1,0.001]
[1753057112941,0.48274624,3726.2,3726.1,0.001]
[1753057113299,4.48314167,3726.2,3726.1,0.001]
[1753057113500,3.16644545,3726.2,3726.1,0.001]
[1753057113838,8.46014545,3726.2,3726.1,0.001]
[1753057114077,4.4646,3726.2,3726.1,0.001]
[1753057115213,4.9138,3726.2,3726.1,0.001]
[1753057115396,5.67354572,3726.2,3726.1,0.001]
[1753057116411,0.002,3726.8,3726.2,2.68364703]
[1753057116608,0.002,3726.8,3726.1,2.81834865]
[1753057116609,4.329,3726.7,3726.1,2.81834865]
[1753057116816,4.329,3726.7,3726.4,0.1336]
[1753057117697,4.329,3726.6,3726.4,0.1336]
[1753057118312,4.328,3726.8,3726.4,0.1336]
[1753057118509,0.002,3726.8,3726.7,2.68333914]
[1753057118736,0.002,3726.8,3726.7,3.08527305]
[1753057120137,0.002,3726.8,3726.7,3.31267305]
[1753057120442,0.002,3726.8,3726.7,6.31267305]
[1753057120614,1e-08,3726.8,3726.7,6.08527305]
[1753057121032,1e-08,3726.8,3726.7,6.31267305]
[1753057121601,1e-08,3726.8,3726.7,6.08527305]
[1753057121807,1e-08,3726.8,3726.7,2.81693914]
[1753057122042,0.44920001,3726.8,3726.4,2.68355461]
[1753057122345,0.44920001,3726.8,3726.5,2.81706653]
[1753057122837,0.48274173,3726.7,3726.5,0.1336]
[1753057123040,0.48274173,3726.7,3726.1,2.68475069]
[1753057123239,0.48274173,3726.7,3726.4,0.1336]
[1753057123438,0.4492,3726.6,3726.4,0.1336]
[1753057123643,0.4492,3726.6,3726.2,0.1336]
[1753057123644,0.03354353,3726.5,3726.2,0.1336]
[1753057123941,0.4492,3726.5,3726.2,0.1336]
[1753057124144,0.03354443,3726.4,3726.2,0.1336]
[1753057124552,0.03354263,3726.6,3726.2,0.1336]
[1753057125252,1e-08,3726.8,3726.4,2.68355517]
[1753057125546,1e-08,3726.8,3726.5,0.1336]
[1753057125744,1e-08,3726.8,3726.5,2.81705122]
[1753057125912,1e-08,3726.8,3726.6,2.68339378]
[1753057126113,1e-08,3726.8,3726.7,2.68333914]
[1753057126313,1e-08,3726.8,3726.7,3.24410759]
[1753057126514,1e-08,3726.8,3726.7,3.3912154]
[1753057126720,4.317,3728.2,3726.8,2.68326714]
[1753057126922,0.8991,3728.4,3727.8,2.68254734]
[1753057127262,4.319,3728.3,3727.8,2.81614734]
[1753057127424,0.002,3728.3,3727.8,2.81614734]
[1753057127757,0.002,3728.3,3727.8,3.37951438]
[1753057127958,0.002,3728.3,3727.8,3.60691438]
[1753057128254,0.002,3728.3,3727.8,3.36602564]
[1753057128457,0.002,3728.3,3727.8,0.1336]
[1753057128858,0.002,3728.3,3727.8,2.81614734]
[1753057129157,0.002,3728.3,3727.8,0.1336]
[1753057129963,1.2111,3728.3,3727.8,0.1336]
[1753057130135,1.3447,3728.3,3727.8,0.1336]
[1753057131361,0.4692,3727.9,3726.7,0.78816845]
[1753057131663,0.02,3727.9,3727.5,0.1336]
[1753057131860,0.02,3727.9,3727.6,2.68268165]
[1753057132062,0.02,3727.9,3727.1,7.220397]
[1753057132364,0.02,3727.9,3727.8,2.81614734]
[1753057132746,0.02,3727.9,3727.8,0.1336]
[1753057133350,0.02,3727.9,3727.8,2.81614734]
[1753057133663,0.02,3727.9,3727.8,3.6069186]
[1753057133870,0.02,3727.9,3727.8,3.36603058]
[1753057135440,0.02,3727.9,3727.8,3.45983058]
[1753057135639,0.002,3728.3,3728.2,2.68225953]
[1753057135861,0.002,3728.3,3727.8,3.54988324]
[1753057136061,0.002,3728.3,3728.2,4.302]
[1753057136834,1.248,3728.3,3727.8,2.68254329]
[1753057137241,0.7988,3728.3,3727.4,4.307]
[1753057137465,0.4492,3728.2,3727.7,2.68261738]
[1753057137771,0.002,3727.9,3727.5,2.6827534]
[1753057138271,0.002,3727.9,3726.1,0.021]
[1753057138432,0.4632,3727.8,3726.8,4.304]
[1753057138635,0.03353274,3727.7,3726.9,2.68314792]
[1753057138834,0.03353274,3727.7,3727.0,2.68311639]
[1753057139036,0.03353274,3727.7,3726.8,4.304]
[1753057139271,0.03353274,3727.7,3726.9,0.4304]
[1753057139449,0.03353274,3727.7,3727.0,2.68311275]
[1753057139646,0.03353274,3727.7,3727.1,2.68298831]
[1753057139873,0.002,3727.9,3727.2,2.68292278]
[1753057140233,0.002,3727.9,3727.3,0.01349414]
[1753057140439,0.002,3727.9,3726.9,0.4304]
[1753057140669,0.4632,3727.8,3726.7,4.3]
[1753057140870,0.002,3727.9,3726.7,4.3]
[1753057140871,0.03553094,3727.9,3726.7,4.3]
[1753057141057,0.002,3727.9,3726.8,0.2274]
[1753057141260,0.002,3727.9,3727.2,2.68293001]
[1753057141540,0.002,3727.9,3727.2,2.68296896]
[1753057141895,0.002,3727.9,3726.7,4.3]
[1753057142178,0.03553094,3727.9,3727.2,2.68292893]
[1753057142379,0.002,3727.9,3727.4,2.68283424]
[1753057142542,0.4652,3727.9,3727.3,2.68288316]
[1753057142740,0.4652,3727.9,3726.8,6.11325032]
[1753057142947,0.4652,3727.9,3727.3,2.68290136]
[1753057143174,0.4652,3727.9,3726.9,1.06406503]
[1753057143550,0.002,3727.9,3727.0,0.01349738]
[1753057143757,0.002,3727.9,3727.8,2.68254734]
[1753057143942,0.002,3727.9,3727.8,2.90994734]
[1753057144145,0.002,3727.9,3727.8,5.92343536]
[1753057144337,0.002,3727.9,3727.8,5.90994734]
[1753057144581,0.002,3727.9,3727.8,7.19880546]
[1753057145675,0.002,3727.9,3727.8,7.33240546]
[1753057146253,0.002,3727.9,3727.8,11.86500546]
[1753057146583,0.002,3728.5,3728.4,2.68211565]
[1753057146743,0.002,3728.5,3728.4,10.10771565]
[1753057147087,0.002,3728.5,3728.4,11.61410754]
[1753057148580,1e-08,3728.5,3728.4,20.20194954]
[1753057148883,1e-08,3728.5,3728.4,8.38670754]
[1753057149046,1e-08,3728.5,3728.4,7.10771565]
[1753057151462,1e-08,3728.5,3728.4,0.1336]
[1753057151668,0.46320001,3728.5,3728.4,0.1336]
[1753057152619,1e-08,3728.5,3728.4,0.1336]
[1753057152985,0.46320001,3728.5,3728.4,0.1336]
[1753057156494,1e-08,3728.5,3728.4,0.1336]
[1753057157149,1.28860001,3728.5,3726.8,0.43]
[1753057157310,5.53105524,3727.9,3727.7,0.1336]
[1753057157629,0.4632,3727.9,3727.7,0.1336]
[1753057157797,0.1336,3728.3,3727.7,0.1336]
[1753057157798,0.4632,3728.3,3727.7,0.1336]
[1753057158011,0.4632,3728.3,3727.4,4.281]
[1753057158012,0.82540001,3728.5,3728.1,0.1336]
[1753057158387,0.82540001,3728.5,3727.8,4.282]
[1753057158388,1e-08,3728.5,3728.4,0.1336]
[1753057158635,0.46320001,3728.5,3728.4,0.1336]
[1753057160325,1e-08,3728.5,3728.4,0.1336]
[1753057160714,0.46320001,3728.5,3728.4,0.1336]
[1753057160915,0.46320001,3728.5,3725.7,2.685024]
[1753057160916,2.68305647,3727.1,3725.7,2.685024]
[1753057161122,5.53105524,3726.6,3726.4,0.1336]
[1753057161290,2.68369921,3726.2,3726.0,0.1336]
[1753057161489,2.71724545,3726.2,3725.7,0.001]
[1753057161811,3.50102946,3725.7,3725.3,0.1336]
[1753057162010,2.68435065,3725.3,3724.4,0.004]
[1753057162211,0.03355434,3725.3,3724.4,0.004]
[1753057162410,0.4632,3725.2,3724.4,0.1376]
[1753057162636,4.309,3725.5,3724.4,0.1376]
[1753057162835,0.4632,3725.2,3724.8,0.57190185]
[1753057163923,4.4426,3725.5,3724.8,0.57190185]
[1753057163924,0.1336,3725.5,3724.8,0.57190185]
[1753057164102,4.7732,3725.5,3725.1,0.1536]
[1753057164312,0.4632,3725.4,3725.1,0.1536]
[1753057164512,0.4632,3725.3,3725.1,0.1536]
[1753057165238,2.68463582,3724.9,3724.8,0.43830185]
[1753057165562,13.80929106,3724.9,3724.8,0.43830185]
[1753057166202,9.50129106,3724.9,3724.8,0.43830185]
[1753057166404,13.81129106,3724.9,3724.8,0.43830185]
[1753057166609,14.3971996,3724.9,3724.8,0.43830185]
[1753057166968,2.68492415,3724.5,3724.4,0.004]
[1753057167105,2.68492095,3724.6,3724.4,0.004]
[1753057167306,0.4632,3724.5,3724.4,0.004]
[1753057167614,4.7732,3724.5,3724.4,0.004]
[1753057168042,9.65500273,3724.5,3724.4,0.004]
[1753057168211,3.23514043,3724.2,3724.1,0.02]
[1753057168412,2.68555533,3723.7,3723.3,0.0128692]
[1753057168658,0.1336,3723.5,3723.3,0.0128692]
[1753057168967,2.68571735,3723.4,3723.3,0.0128692]
[1753057169108,1.77064396,3723.4,3723.3,0.0128692]
[1753057169322,5.5589,3723.4,3723.3,0.0128692]
[1753057169618,1.2429,3723.4,3723.3,0.0128692]
[1753057169825,5.5589,3723.4,3723.3,0.0128692]
[1753057170019,0.1336,3723.5,3723.3,0.0128692]
[1753057170246,4.317,3723.5,3723.3,0.1464692]
[1753057170432,0.03356876,3723.7,3723.3,0.1464692]
[1753057170612,0.7749,3723.8,3723.3,0.0128692]
[1753057170613,0.4723,3723.6,3723.3,0.0128692]
[1753057170811,0.7749,3723.8,3723.3,0.0128692]
[1753057170812,0.7749,3723.8,3723.5,0.1336]
[1753057171209,0.6059,3724.1,3723.5,0.4168258]
[1753057171411,0.6059,3724.1,3723.8,2.6853686]